[Event "FRA-chTW Top 12 2019"]
[Site "Vandoeuvre"]
[Date "2019.05.04"]
[Round "4.10"]
[White "Gospodaru, Teodora"]
[Black "Belluire, Beatrice"]
[Result "0-1"]
[ECO "A57"]
[WhiteElo "1434"]
[BlackElo "1913"]
[Annotator "NA"]
[PlyCount "86"]
[EventDate "2019.05.02"]
[EventType "team-tourn"]
[EventCountry "FRA"]
[SourceTitle "playchess.com"]
[Source "ChessBase"]
[SourceQuality "1"]
[TimeControl "40/5400+30:1800+30"]

1. d4 {[%emt 0:00:00]} Nf6 {[%emt 0:00:00]} 2. Nf3 {[%emt 0:00:00]} g6 {[%emt 0:00:00]} 3. c4 {[%emt 0:00:00]} c5 {[%emt 0:00:00]} 4. d5 {[%emt 0:00:00]} b5 {[%emt 0:00:00]} 5. Qc2 {[%emt 0:00:02]} b4 {[%emt 0:04:46]} 6. e4 {[%emt 0:03:33]} d6 {[%emt 0:00:08]} 7. Nbd2 {[%emt 0:01:37]} Bg7 {[%emt 0:00:28]} 8. a3 {[%emt 0:00:06]} O-O {[%emt 0:07:20]} 9. Be2 {[%emt 0:01:10]} a5 {[%emt 0:00:59]} 10. O-O {[%emt 0:03:22]} Bb7 {[%emt 0:00:51]} 11. h3 {[%emt 0:06:56]} Nbd7 {[%emt 0:00:56]} 12. Ne1 {[%emt 0:01:25]} e5 {[%emt 0:03:17]} 13. Nd3 {[%emt 0:07:57]} Nb6 {[%emt 0:16:30]} 14. f4 {[%emt 0:07:32]} exf4 {[%emt 0:02:21]} 15. Nxf4 {[%emt 0:02:04]} Qe7 {[%emt 0:04:02]} 16. Bf3 {[%emt 0:08:16]} Rfe8 {[%emt 0:01:44]} 17. Re1 {[%emt 0:03:58]} Ba6 {[%emt 0:00:35]} 18. Nd3 {[%emt 0:07:48]} Nfd7 {[%emt 0:01:46]} 19. Rb1 {[%emt 0:02:20]} Ne5 {[%emt 0:02:01]} 20. Nxe5 {[%emt 0:07:08]} Qxe5 {[%emt 0:00:12]} 21. Be2 {[%emt 0:05:38]} Bc8 {[%emt 0:16:39]} 22. Nf3 {[%emt 0:06:06]} Qg3 {[%emt 0:15:11]} 23. Kf1 {[%emt 0:06:18]} f5 {[%emt 0:09:26]} 24. Bd3 {[%emt 0:05:22]} fxe4 {[%emt 0:00:23]} 25. Bxe4 {[%emt 0:03:04]} Bf5 {[%emt 0:00:23]} 26. Bxf5 {[%emt 0:01:40]} Rxe1+ {[%emt 0:00:24]} 27. Nxe1 {[%emt 0:00:05]} Rf8 {[%emt 0:01:01]} 28. Nf3 {[%emt 0:02:29]} Rxf5 {[%emt 0:00:05]} 29. Be3 {[%emt 0:01:28]} Rxf3+ {[%emt 0:03:43]} 30. gxf3 {[%emt 0:01:02]} Qxf3+ {[%emt 0:00:01]} 31. Qf2 {[%emt 0:01:03]} Qh1+ {[%emt 0:00:58]} 32. Qg1 {[%emt 0:00:07]} Qxh3+ {[%emt 0:01:46]} 33. Ke2 {[%emt 0:01:12]} Nxc4 {[%emt 0:01:29]} 34. axb4 {[%emt 0:01:44]} Qh5+ {[%emt 0:03:36]} 35. Kf1 {[%emt 0:02:23]} Qf3+ {[%emt 0:00:31]} 36. Bf2 {[%emt 0:01:43]} Nd2+ {[%emt 0:00:20]} 37. Ke1 {[%emt 0:00:07]} Nxb1 {[%emt 0:00:14]} 38. Qg5 {[%emt 0:00:19]} Bf6 {[%emt 0:01:23]} 39. Qc1 {[%emt 0:00:06]} Qh1+ {[%emt 0:00:29]} 40. Ke2 {[%emt 0:00:05]} Qxc1 {[%emt 0:00:05]} 41. Be3 {[%emt 0:30:01]} Qc2+ {[%emt 0:30:18]} 42. Kf3 {[%emt 0:00:04]} Nd2+ {[%emt 0:00:11]} 43. Bxd2 {[%emt 0:00:06]} Qxd2 {[%emt 0:00:04]} 0-1

[Event "FRA-chTW Top 12 2019"]
[Site "Vandoeuvre"]
[Date "2019.05.04"]
[Round "4.11"]
[White "Leconte, Maria"]
[Black "Hamelin, Isabelle"]
[Result "1-0"]
[ECO "D05"]
[WhiteElo "2246"]
[BlackElo "1609"]
[Annotator "NA"]
[PlyCount "61"]
[EventDate "2019.05.02"]
[EventType "team-tourn"]
[EventCountry "FRA"]
[SourceTitle "playchess.com"]
[Source "ChessBase"]
[SourceQuality "1"]
[TimeControl "40/5400+30:1800+30"]

1. Nf3 {[%emt 0:00:00]} d5 {[%emt 0:00:00]} 2. b3 {[%emt 0:00:30]} Nf6 {[%emt 0:00:00]} 3. Bb2 {[%emt 0:00:09]} e6 {[%emt 0:00:01]} 4. e3 {[%emt 0:00:36]} Be7 {[%emt 0:00:25]} 5. d4 {[%emt 0:00:26]} b6 {[%emt 0:00:21]} 6. Bd3 {[%emt 0:00:43]} Bb7 {[%emt 0:00:09]} 7. Nbd2 {[%emt 0:01:21]} O-O {[%emt 0:00:22]} 8. Ne5 {[%emt 0:03:46]} Nbd7 {[%emt 0:01:27]} 9. O-O {[%emt 0:01:31]} a6 {[%emt 0:01:45]} 10. Qf3 {[%emt 0:04:50]} c5 {[%emt 0:02:00]} 11. Qh3 {[%emt 0:05:02]} h6 {[%emt 0:06:27]} 12. Rad1 {[%emt 0:02:49]} Nxe5 {[%emt 0:04:08]} 13. dxe5 {[%emt 0:03:14]} Nh7 {[%emt 0:04:28]} 14. f4 {[%emt 0:03:40]} Bc8 {[%emt 0:02:23]} 15. c4 {[%emt 0:05:49]} f5 {[%emt 0:03:21]} 16. Nf3 {[%emt 0:14:08]} Rf7 {[%emt 0:07:55]} 17. cxd5 {[%emt 0:06:49]} exd5 {[%emt 0:01:52]} 18. Bc4 {[%emt 0:00:04]} Be6 {[%emt 0:02:16]} 19. e4 {[%emt 0:00:48]} Qd7 {[%emt 0:08:05]} 20. exd5 {[%emt 0:00:22]} Qe8 {[%emt 0:03:03]} 21. dxe6 {[%emt 0:00:11]} Rf8 {[%emt 0:00:02]} 22. Rd7 {[%emt 0:02:25]} b5 {[%emt 0:01:34]} 23. Bd5 {[%emt 0:00:11]} Rb8 {[%emt 0:00:46]} 24. Nh4 {[%emt 0:01:16]} Kh8 {[%emt 0:00:47]} 25. Rxe7 {[%emt 0:00:56]} Qh5 {[%emt 0:02:16]} 26. Bf3 {[%emt 0:00:34]} Ng5 {[%emt 0:00:55]} 27. Bxh5 {[%emt 0:03:11]} Nxh3+ {[%emt 0:00:08]} 28. gxh3 {[%emt 0:00:02]} Kh7 {[%emt 0:01:12]} 29. Rd1 {[%emt 0:00:27]} Rbd8 {[%emt 0:02:52]} 30. Rxd8 {[%emt 0:00:21]} Rxd8 {[%emt 0:00:03]} 31. Rd7 {[%emt 0:00:04]} 1-0

[Event "FRA-chTW Top 12 2019"]
[Site "Vandoeuvre"]
[Date "2019.05.04"]
[Round "4.11"]
[White "Nicolas, Gabrielle"]
[Black "Klipper, Noemie"]
[Result "1-0"]
[ECO "D05"]
[WhiteElo "1733"]
[BlackElo "1816"]
[Annotator "NA RC"]
[PlyCount "93"]
[EventDate "2019.05.02"]
[EventType "team-tourn"]
[EventCountry "FRA"]
[SourceTitle "playchess.com"]
[Source "ChessBase"]
[SourceQuality "1"]
[TimeControl "40/5400+30:1800+30"]

1. d4 {[%emt 0:00:00]} Nf6 {[%emt 0:00:00]} 2. Nf3 {[%emt 0:00:04]} e6 {[%emt 0:00:00]} 3. e3 {[%emt 0:01:27]} c5 {[%emt 0:02:38]} 4. Bd3 {[%emt 0:03:12]} d5 {[%emt 0:05:38]} 5. b3 {[%emt 0:04:03]} cxd4 {[%emt 0:09:26]} 6. exd4 {[%emt 0:06:36]} Bd6 {[%emt 0:03:55]} 7. O-O {[%emt 0:01:15]} O-O {[%emt 0:01:10]} 8. Bg5 {[%emt 0:03:16]} Nbd7 {[%emt 0:01:18]} 9. c3 {[%emt 0:07:54]} Qc7 {[%emt 0:12:50]} 10. Qc2 {[%emt 0:05:55]} b6 {[%emt 0:04:45]} 11. Nbd2 {[%emt 0:03:53]} Bb7 {[%emt 0:00:29]} 12. a4 {[%emt 0:06:50]} Rac8 {[%emt 0:16:57]} 13. Rfc1 {[%emt 0:01:40]} h6 {[%emt 0:14:28]} 14. Bh4 {[%emt 0:04:34]} Nh5 {[%emt 0:05:48]} 15. Nf1 {[%emt 0:06:18]} e5 {[%emt 0:03:28]} 16. Bf5 {[%emt 0:04:00]} e4 {[%emt 0:03:28]} 17. N3d2 {[%emt 0:04:56]} Nf4 {[%emt 0:02:20]} 18. Qd1 {[%emt 0:02:54]} Rce8 {[%emt 0:08:50]} 19. Ng3 {[%emt 0:09:35]} g5 {[%emt 0:00:36]} 20. Nh5 {[%emt 0:02:52]} Nxh5 {[%emt 0:00:17]} 21. Qxh5 {[%emt 0:00:12]} Nf6 {[%emt 0:01:28]} 22. Qxh6 {[%emt 0:01:11]} Bxh2+ {[%emt 0:00:18]} 23. Kh1 {[%emt 0:00:59]} Qf4 {[%emt 0:00:23]} 24. Qxg5+ {[%emt 0:03:19]} Qxg5 {[%emt 0:01:30]} 25. Bxg5 {[%emt 0:00:05]} Kg7 {[%emt 0:00:00]} 26. Kxh2 {[%emt 0:00:37]} Rh8+ {[%emt 0:00:00]} 27. Kg1 {[%emt 0:00:50]} Rh5 {[%emt 0:00:00]} 28. Bxf6+ {[%emt 0:00:44]} Kxf6 {[%emt 0:00:00]} 29. Bh3 {[%emt 0:01:25]} Ba6 {[%emt 0:00:59]} 30. c4 {[%emt 0:01:34]} Rg8 {[%emt 0:00:03]} 31. Kf1 {[%emt 0:00:58]} dxc4 {[%emt 0:01:27]} 32. Nxe4+ {[%emt 0:00:51]} Ke7 {[%emt 0:00:23]} 33. bxc4 {[%emt 0:00:20]} Rd5 {[%emt 0:00:24]} 34. Ra3 {[%emt 0:01:29]} Rxd4 {[%emt 0:00:12]} 35. Re3 {[%emt 0:00:40]} Kd8 {[%emt 0:01:07]} 36. Ke1 {[%emt 0:00:56]} Re8 {[%emt 0:00:37]} 37. Rd1 {[%emt 0:02:00]} Rxd1+ {[%emt 0:00:14]} 38. Kxd1 {[%emt 0:00:09]} Bxc4 {[%emt 0:00:14]} 39. Kd2 {[%emt 0:00:37]} Be6 {[%emt 0:01:18]} 40. Nf6 {[%emt 0:01:03]} Re7 {[%emt 0:00:08]} 41. Bxe6 {[%emt 0:30:27]} fxe6 {[%emt 0:30:05]} 42. g4 {[%emt 0:00:15]} e5 {[%emt 0:00:32]} 43. g5 {[%emt 0:00:16]} Re6 {[%emt 0:00:31]} 44. Ng4 {[%emt 0:01:10]} e4 {[%emt 0:00:11]} 45. Nf6 {[%emt 0:00:45]} Re5 {[%emt 0:00:26]} 46. Nxe4 {[%emt 0:00:14]} Rf5 {[%emt 0:00:19]} 47. g6 {[%emt 0:00:22]} 1-0

[Event "FRA-chTW Top 12 2019"]
[Site "Vandoeuvre"]
[Date "2019.05.04"]
[Round "4.12"]
[White "Gromas, Hermine"]
[Black "Dornbusch, Tatiana"]
[Result "0-1"]
[ECO "A57"]
[WhiteElo "1476"]
[BlackElo "2285"]
[Annotator "NA"]
[PlyCount "42"]
[EventDate "2019.05.02"]
[EventType "team-tourn"]
[EventCountry "FRA"]
[SourceTitle "playchess.com"]
[Source "ChessBase"]
[SourceQuality "1"]
[TimeControl "40/5400+30:1800+30"]

1. d4 {[%emt 0:00:00]} Nf6 {[%emt 0:00:00]} 2. c4 {[%emt 0:00:00]} c5 {[%emt 0:00:00]} 3. d5 {[%emt 0:00:07]} b5 {[%emt 0:00:21]} 4. b3 {[%emt 0:00:49]} g6 {[%emt 0:16:18]} 5. Bb2 {[%emt 0:04:57]} bxc4 {[%emt 0:04:05]} 6. bxc4 {[%emt 0:02:11]} Bg7 {[%emt 0:00:10]} 7. Qc2 {[%emt 0:05:01]} O-O {[%emt 0:04:08]} 8. Nd2 {[%emt 0:02:36]} e6 {[%emt 0:04:56]} 9. e4 {[%emt 0:03:10]} exd5 {[%emt 0:01:38]} 10. exd5 {[%emt 0:05:00]} Re8+ {[%emt 0:01:18]} 11. Be2 {[%emt 0:02:46]} Qe7 {[%emt 0:00:47]} 12. Nb3 {[%emt 0:00:57]} d6 {[%emt 0:02:11]} 13. Nc1 {[%emt 0:06:27]} Bf5 {[%emt 0:03:24]} 14. Qd1 {[%emt 0:04:26]} Na6 {[%emt 0:09:17]} 15. a3 {[%emt 0:02:01]} Rab8 {[%emt 0:00:10]} 16. Bc3 {[%emt 0:02:59]} Ne4 {[%emt 0:00:57]} 17. Bxg7 {[%emt 0:00:24]} Kxg7 {[%emt 0:00:05]} 18. Kf1 {[%emt 0:12:19]} Qf6 {[%emt 0:02:29]} 19. Nd3 {[%emt 0:01:55]} Nc3 {[%emt 0:00:55]} 20. Qe1 {[%emt 0:03:02]} Nxe2 {[%emt 0:00:28]} 21. Nxe2 {[%emt 0:00:19]} Bxd3 {[%emt 0:00:04]} 0-1

[Event "FRA-chTW Top 12 2019"]
[Site "Vandoeuvre"]
[Date "2019.05.05"]
[Round "5.3"]
[White "Klipper, Noemie"]
[Black "Maisuradze, Nino"]
[Result "0-1"]
[ECO "A25"]
[WhiteElo "1816"]
[BlackElo "2179"]
[Annotator "NA RC"]
[PlyCount "102"]
[EventDate "2019.05.02"]
[EventType "team-tourn"]
[EventCountry "FRA"]
[SourceTitle "playchess.com"]
[Source "ChessBase"]
[SourceQuality "1"]
[TimeControl "40/5400+30:1800+30"]

1. c4 {[%emt 0:00:00]} e5 {[%emt 0:00:07]} 2. Nc3 {[%emt 0:00:00]} Nc6 {[%emt 0:00:03]} 3. g3 {[%emt 0:00:00]} g6 {[%emt 0:00:37]} 4. Bg2 {[%emt 0:00:00]} Bg7 {[%emt 0:00:05]} 5. e3 {[%emt 0:00:38]} d6 {[%emt 0:03:18]} 6. Nge2 {[%emt 0:00:32]} h5 {[%emt 0:00:46]} 7. d4 {[%emt 0:01:22]} h4 {[%emt 0:07:35]} 8. d5 {[%emt 0:05:16]} Nce7 {[%emt 0:02:23]} 9. e4 {[%emt 0:01:28]} a6 $146 {[%emt 0:07:51] A25: English Opening vs King's Indian with ...Nc6 but without early d3} ({Predecessor:} 9... f5 10. Bg5 Bf6 11. gxh4 Bd7 12. Qd3 Nc8 13. f4 exf4 14. O-O Bxg5 15. hxg5 Qxg5 16. Nxf4 Nce7 17. Nb5 O-O-O {½-½ (79) Timofeev,A (2671)-Bartel,M (2594) Budva 2009}) 10. Bd2 {[%emt 0:06:09]} c5 {[%emt 0:05:33]} 11. h3 {[%emt 0:11:16]} hxg3 {[%emt 0:00:54]} 12. Nxg3 {[%emt 0:02:19]} Bd7 {[%emt 0:02:13]} 13. h4 {[%emt 0:02:09]} b5 {[%emt 0:02:31]} 14. cxb5 {[%emt 0:06:36]} axb5 {[%emt 0:00:13]} 15. a4 {[%emt 0:06:12]} bxa4 {[%emt 0:04:41]} 16. Nxa4 {[%emt 0:06:56]} Bh6 {[%emt 0:21:35]} 17. Bxh6 {[%emt 0:12:19]} Rxh6 {[%emt 0:01:22]} 18. Nc3 {[%emt 0:00:14]} Rxa1 {[%emt 0:08:30]} 19. Qxa1 {[%emt 0:36:04]} Nc8 {[%emt 0:00:38]} 20. h5 {[%emt 0:00:00]} gxh5 {[%emt 0:06:49]} 21. Rxh5 {[%emt 0:00:00]} Rxh5 {[%emt 0:00:14]} 22. Nxh5 {[%emt 0:00:00]} Qg5 {[%emt 0:02:54]} 23. Ng3 {[%emt 0:02:00]} Nge7 {[%emt 0:00:46]} 24. Qd1 {[%emt 0:00:00]} Ng6 {[%emt 0:00:49]} 25. Qd2 {[%emt 0:00:00]} Nf4 {[%emt 0:00:41]} 26. Bf1 {[%emt 0:00:00]} Ne7 {[%emt 0:04:51]} 27. Bb5 {[%emt 0:00:00]} Qg4 {[%emt 0:07:00]} 28. Qd1 {[%emt 0:00:00]} Ng2+ {[%emt 0:01:36]} 29. Kd2 {[%emt 0:00:00]} Qf4+ {[%emt 0:01:04]} 30. Ke2 {[%emt 0:00:00]} Qg4+ $11 {[%emt 0:01:52]} 31. Kd2 {[%emt 0:00:00]} Qg5+ {[%emt 0:00:17]} 32. Kc2 {[%emt 0:00:00]} Qxg3 {[%emt 0:03:51]} 33. fxg3 {[%emt 0:00:00]} Ne3+ {[%emt 0:00:02]} 34. Kd2 {[%emt 0:00:00]} Nxd1 {[%emt 0:00:02]} 35. Kxd1 {[%emt 0:00:00]} f5 {[%emt 0:00:33]} 36. Bxd7+ {[%emt 0:00:00]} Kxd7 {[%emt 0:00:01]} 37. Ke2 {[%emt 0:00:00]} fxe4 {[%emt 0:00:18]} 38. Nxe4 {[%emt 0:00:00]} Nxd5 {[%emt 0:00:10]} 39. g4 {[%emt 0:00:00]} Nf4+ {[%emt 0:00:33]} 40. Ke3 {[%emt 0:00:00]} c4 {[%emt 0:01:01]} 41. Kd2 {[%emt 0:19:38]} d5 {[%emt 0:30:18]} 42. Nc5+ {[%emt 0:04:16]} Kc6 {[%emt 0:00:41]} 43. b4 {[%emt 0:02:10]} Kb5 {[%emt 0:00:47]} 44. Nd7 {[%emt 0:00:19]} Ng6 {[%emt 0:01:16]} 45. Nf6 {[%emt 0:01:50]} d4 {[%emt 0:00:02]} 46. Nd5 {[%emt 0:00:40]} e4 {[%emt 0:00:46]} 47. g5 {[%emt 0:01:38]} Ne5 {[%emt 0:01:32]} 48. Ke2 {[%emt 0:00:50]} c3 {[%emt 0:00:19]} 49. Ne7 {[%emt 0:00:50]} d3+ {[%emt 0:00:17]} 50. Kd1 {[%emt 0:00:22]} e3 {[%emt 0:00:56]} 51. g6 {[%emt 0:00:10]} e2+ {[%emt 0:00:12]} 0-1

[Event "FRA-chTW Top 12 2019"]
[Site "Vandoeuvre"]
[Date "2019.05.05"]
[Round "5.3"]
[White "Hamelin, Isabelle"]
[Black "Franc, Nathalie"]
[Result "1-0"]
[ECO "A29"]
[WhiteElo "1609"]
[BlackElo "2004"]
[Annotator "NA RC"]
[PlyCount "74"]
[EventDate "2019.05.02"]
[EventType "team-tourn"]
[EventCountry "FRA"]
[SourceTitle "playchess.com"]
[Source "ChessBase"]
[SourceQuality "1"]
[TimeControl "40/5400+30:1800+30"]

1. c4 {[%emt 0:03:03]} e5 {[%emt 0:00:28]} 2. Nc3 {[%emt 0:00:13]} Nf6 {[%emt 0:00:24]} 3. g3 {[%emt 0:00:27]} Nc6 {[%emt 0:00:23]} 4. Bg2 {[%emt 0:00:09]} Bc5 {[%emt 0:00:20]} 5. Nf3 {[%emt 0:00:50]} d6 {[%emt 0:01:22]} 6. O-O {[%emt 0:00:24]} O-O {[%emt 0:00:48]} 7. Na4 {[%emt 0:00:49]} Bb6 {[%emt 0:05:11]} 8. Nxb6 {[%emt 0:00:12]} axb6 {[%emt 0:00:08]} 9. a3 {[%emt 0:00:23] A29: English Opening: Four Knights Variation with 4 g3} Re8 {[%emt 0:02:10]} 10. d3 {[%emt 0:04:40]} h6 {[%emt 0:01:27]} 11. b3 $146 {[%emt 0:02:57]} ({Predecessor:} 11. Nd2 Bf5 12. b4 Qc8 13. Bb2 Bh3 14. e4 Bxg2 15. Kxg2 Qe6 16. h3 Nd7 {½-½ (38) Saenko,G (1856)-Chaves,T (1956) Brasilia 2012}) 11... Bf5 {[%emt 0:04:24]} 12. Bb2 {[%emt 0:01:30]} e4 {[%emt 0:13:39]} 13. Nd4 {[%emt 0:04:47]} Bg6 {[%emt 0:06:39]} 14. Nxc6 {[%emt 0:01:40]} bxc6 {[%emt 0:00:13]} 15. dxe4 {[%emt 0:02:29]} Bxe4 {[%emt 0:07:53]} 16. f3 {[%emt 0:04:13]} Bg6 {[%emt 0:00:32]} 17. e4 {[%emt 0:00:16]} Nd7 {[%emt 0:16:44]} 18. Re1 {[%emt 0:05:03]} f6 {[%emt 0:04:13]} 19. Rc1 {[%emt 0:11:50]} Rb8 {[%emt 0:04:22]} 20. b4 {[%emt 0:04:44]} c5 $14 {[%emt 0:04:10]} 21. b5 {[%emt 0:06:35]} Re7 {[%emt 0:06:27]} 22. f4 {[%emt 0:02:03]} Qe8 {[%emt 0:02:02]} 23. e5 {[%emt 0:03:02]} fxe5 {[%emt 0:02:18]} 24. Bc6 {[%emt 0:00:31]} e4 {[%emt 0:02:23]} 25. Qg4 {[%emt 0:01:08]} Bh5 {[%emt 0:07:08]} 26. Qh3 {[%emt 0:05:09]} Bf3 {[%emt 0:01:13]} 27. Re3 {[%emt 0:03:07]} Kh7 {[%emt 0:02:28]} 28. Rce1 {[%emt 0:01:28]} Qf7 {[%emt 0:03:21]} 29. Bd5 {[%emt 0:04:05]} Qg6 {[%emt 0:00:37]} 30. Rxf3 {[%emt 0:01:19]} exf3 {[%emt 0:00:06]} 31. Rxe7 {[%emt 0:00:36]} Qb1+ {[%emt 0:00:20]} 32. Qf1 {[%emt 0:01:03]} Qxb2 {[%emt 0:00:32]} 33. Qxf3 {[%emt 0:03:40]} Qc1+ {[%emt 0:00:56]} 34. Kg2 {[%emt 0:00:18]} Nf6 {[%emt 0:00:25]} 35. Qd3+ {[%emt 0:00:55]} Kh8 {[%emt 0:00:14]} 36. Qg6 {[%emt 0:01:59]} Qd2+ {[%emt 0:00:24]} 37. Kh3 {[%emt 0:00:13]} Ne8 {[%emt 0:02:06]} 1-0

[Event "FRA-chTW Top 12 2019"]
[Site "Vandoeuvre"]
[Date "2019.05.05"]
[Round "5.4"]
[White "Fischer, Julie"]
[Black "Saliou, Sarah"]
[Result "1-0"]
[ECO "B31"]
[WhiteElo "2046"]
[BlackElo "1696"]
[Annotator "NA RC"]
[PlyCount "55"]
[EventDate "2019.05.02"]
[EventType "team-tourn"]
[EventCountry "FRA"]
[SourceTitle "playchess.com"]
[Source "ChessBase"]
[SourceQuality "1"]
[TimeControl "40/5400+30:1800+30"]

1. e4 {[%emt 0:00:00]} c5 {[%emt 0:00:00]} 2. Nf3 {[%emt 0:00:00]} Nc6 {[%emt 0:00:00]} 3. Bb5 {[%emt 0:00:00]} g6 {[%emt 0:00:00]} 4. Bxc6 {[%emt 0:00:00]} dxc6 {[%emt 0:00:00]} 5. d3 {[%emt 0:00:00]} Bg7 {[%emt 0:00:00]} 6. h3 {[%emt 0:00:05]} Nh6 {[%emt 0:03:46] B31: Sicilian: 2...Nc6 3 Bb5 g6} (6... Nf6 7. Nc3 Nd7 8. Be3 e5 9. Qd2 h6 10. a3 b6 11. b4 Nf8 12. bxc5 Ne6 13. cxb6 axb6 14. Qc1 f5 15. a4 f4 16. Bd2 O-O 17. Qb2 {0-1 (51) Meier,G (2628)-Caruana,F (2819) Karlsruhe/Baden Baden 2019}) 7. Nc3 {[%emt 0:01:52]} f6 {[%emt 0:00:09]} 8. Be3 {[%emt 0:02:10]} b6 {[%emt 0:00:08]} 9. O-O {[%emt 0:04:18]} e5 {[%emt 0:02:26]} 10. Nh2 {[%emt 0:03:44]} O-O {[%emt 0:03:59]} 11. f4 {[%emt 0:03:41]} exf4 {[%emt 0:05:58]} 12. Bxf4 {[%emt 0:00:12]} f5 {[%emt 0:08:38]} 13. Qd2 {[%emt 0:04:21]} Nf7 {[%emt 0:01:50]} 14. exf5 {[%emt 0:01:07]} gxf5 $146 {[%emt 0:13:53]} ({Predecessor:} 14... Bxf5) 15. Nf3 {[%emt 0:01:56]} Be6 {[%emt 0:09:58]} 16. Rae1 {[%emt 0:02:38]} Qd7 {[%emt 0:01:40]} 17. b3 {[%emt 0:02:04]} Rae8 {[%emt 0:12:36]} 18. Ne2 {[%emt 0:01:24]} Bd5 {[%emt 0:01:16]} 19. Ng3 {[%emt 0:01:16]} Rxe1 {[%emt 0:00:40]} 20. Nxe1 {[%emt 0:00:48]} Qe6 {[%emt 0:05:56]} 21. c4 {[%emt 0:01:16]} Bxg2 {[%emt 0:03:38]} 22. Qxg2 {[%emt 0:00:56]} Kh8 {[%emt 0:01:18]} 23. Nf3 {[%emt 0:00:13]} Rg8 {[%emt 0:01:10]} 24. Kh1 {[%emt 0:01:32]} Qd7 {[%emt 0:02:04]} 25. Nh4 $18 {[%emt 0:04:06]} Qxd3 {[%emt 0:00:59]} 26. Nhxf5 {[%emt 0:00:25]} Bf6 {[%emt 0:07:16]} 27. Qxc6 {[%emt 0:00:55]} Ne5 {[%emt 0:00:35]} 28. Qxf6+ {[%emt 0:00:06]} 1-0

[Event "FRA-chTW Top 12 2019"]
[Site "Vandoeuvre"]
[Date "2019.05.05"]
[Round "5.4"]
[White "Bauer, Alexandra"]
[Black "Gromas, Hermine"]
[Result "0-1"]
[ECO "A82"]
[WhiteElo "1349"]
[BlackElo "1476"]
[Annotator "NA RC"]
[PlyCount "76"]
[EventDate "2019.05.02"]
[EventType "team-tourn"]
[EventCountry "FRA"]
[SourceTitle "playchess.com"]
[Source "ChessBase"]
[SourceQuality "1"]
[TimeControl "40/5400+30:1800+30"]

1. d4 {[%emt 0:01:46]} f5 {[%emt 0:00:00]} 2. Nc3 {[%emt 0:01:29]} g6 {[%emt 0:00:07]} 3. e4 {[%emt 0:01:00]} fxe4 {[%emt 0:02:36]} 4. Nxe4 {[%emt 0:00:08]} Bg7 {[%emt 0:00:37]} 5. Nf3 {[%emt 0:01:20]} Nf6 {[%emt 0:01:16]} 6. Bd3 {[%emt 0:06:36]} O-O {[%emt 0:07:23]} 7. c3 {[%emt 0:02:29]} d5 {[%emt 0:17:02]} 8. Ng3 {[%emt 0:04:17]} Nfd7 {[%emt 0:06:48]} 9. Qe2 {[%emt 0:24:00]} e5 {[%emt 0:11:18]} 10. Bg5 {[%emt 0:06:55]} Qe8 {[%emt 0:01:50]} 11. dxe5 {[%emt 0:02:10]} Nxe5 {[%emt 0:00:57]} 12. Nxe5 {[%emt 0:01:47]} Qxe5 {[%emt 0:10:11]} 13. Qxe5 {[%emt 0:16:17]} Bxe5 {[%emt 0:00:44]} 14. Be3 {[%emt 0:01:30]} Nc6 {[%emt 0:13:30]} 15. O-O {[%emt 0:07:52]} Be6 {[%emt 0:04:37]} 16. Rfe1 {[%emt 0:04:51]} Bf7 {[%emt 0:02:39]} 17. Bb5 {[%emt 0:04:23]} a6 {[%emt 0:11:00]} 18. Bxc6 {[%emt 0:01:45]} bxc6 {[%emt 0:00:10]} 19. Re2 {[%emt 0:00:14]} Bd6 {[%emt 0:04:27]} 20. Rd1 {[%emt 0:04:03]} Rfe8 {[%emt 0:01:16]} 21. f3 {[%emt 0:02:07]} Re6 {[%emt 0:00:57]} 22. Rde1 {[%emt 0:01:15]} Rae8 {[%emt 0:00:50]} 23. Bf2 {[%emt 0:00:51]} Bxg3 {[%emt 0:00:33]} 24. Rxe6 {[%emt 0:00:17]} Bxf2+ {[%emt 0:00:11]} 25. Kxf2 {[%emt 0:00:02]} Rxe6 {[%emt 0:00:10]} 26. Rxe6 {[%emt 0:00:11]} Bxe6 {[%emt 0:00:03]} 27. a3 {[%emt 0:00:38]} Kf7 {[%emt 0:00:39]} 28. Ke3 {[%emt 0:00:08]} c5 {[%emt 0:01:06]} 29. h3 {[%emt 0:02:27]} Kf6 {[%emt 0:00:47]} 30. g4 {[%emt 0:00:54]} g5 {[%emt 0:00:35]} 31. f4 {[%emt 0:01:14]} gxf4+ {[%emt 0:00:35]} 32. Kxf4 {[%emt 0:00:02]} h6 {[%emt 0:00:23]} 33. h4 {[%emt 0:01:00]} d4 {[%emt 0:00:31]} 34. g5+ {[%emt 0:00:29]} hxg5+ {[%emt 0:00:36]} 35. hxg5+ {[%emt 0:00:03]} Kg6 {[%emt 0:00:06]} 36. Ke4 {[%emt 0:00:35]} Bf5+ {[%emt 0:00:36]} 37. Kf3 {[%emt 0:00:49]} d3 {[%emt 0:00:24]} 38. Ke3 {[%emt 0:00:32]} c4 {[%emt 0:00:25]} 0-1

[Event "FRA-chTW Top 12 2019"]
[Site "Vandoeuvre"]
[Date "2019.05.05"]
[Round "5.5"]
[White "Guichard, Pauline"]
[Black "Collas, Silvia"]
[Result "1-0"]
[ECO "A17"]
[WhiteElo "2430"]
[BlackElo "2279"]
[Annotator "NA RC"]
[PlyCount "53"]
[EventDate "2019.05.02"]
[EventType "team-tourn"]
[EventCountry "FRA"]
[SourceTitle "playchess.com"]
[Source "ChessBase"]
[SourceQuality "1"]
[TimeControl "40/5400+30:1800+30"]

{[%evp 12,47,15,5,11,32767,32767,32767,12,24,35,15,19,20,25,0,2,5,1,32767,32767,32767,0,32767,-5,32767,32767,32767,32767,32767,150,150,266,275,297,270,288,0]} 1. Nf3 {[%emt 0:00:00]} d5 {[%emt 0:00:00]} 2. e3 {[%emt 0:00:00]} Nf6 {[%emt 0:00:37]} 3. c4 {[%emt 0:00:00]} e6 {[%emt 0:00:04]} 4. Nc3 {[%emt 0:00:08]} Bd6 {[%emt 0:01:12]} 5. b3 {[%emt 0:00:40]} b6 {[%emt 0:01:36]} 6. g3 {[%emt 0:03:43] A17: English Opening: 1...Nf6 with ...Bb4} Bb7 {[%emt 0:06:02]} 7. Bg2 {[%emt 0:00:12]} O-O {[%emt 0:00:41]} 8. Bb2 {[%emt 0:01:22]} a6 {[%emt 0:00:18]} 9. O-O {[%emt 0:00:12]} Nbd7 {[%emt 0:03:02]} 10. Qe2 {[%emt 0:01:48]} Re8 $146 {[%emt 0:04:06]} ({Predecessor:} 10... Qe7 11. d4 Rac8 12. Rfd1 Rfd8 {0-1 (52) Wei,Y (2734)-Wang,H (2710) Tianjin 2018}) 11. Rfd1 {[%emt 0:00:26]} dxc4 {[%emt 0:01:17]} 12. bxc4 {[%emt 0:00:15]} c5 {[%emt 0:04:38]} 13. d4 {[%emt 0:08:20]} cxd4 {[%emt 0:03:45]} 14. exd4 {[%emt 0:06:10]} Qc7 {[%emt 0:02:03]} 15. Rac1 {[%emt 0:01:22]} Bb4 {[%emt 0:07:25]} 16. Nb1 {[%emt 0:06:02]} Rac8 {[%emt 0:02:34]} 17. Ba1 {[%emt 0:02:35]} b5 {[%emt 0:04:06]} 18. Qb2 {[%emt 0:01:16]} Qa5 {[%emt 0:02:58]} 19. c5 {[%emt 0:21:50]} Qa4 {[%emt 0:00:05]} 20. d5 {[%emt 0:03:44]} exd5 $2 {[%emt 0:12:26]} (20... Bxd5 $17 {and life is bright.} 21. Rd4 a5) 21. Bh3 {[%emt 0:04:55]} Bc6 {[%emt 0:37:49]} (21... Nxc5 {is a better defense.} 22. Bxc8 Rxc8) 22. Nd4 {[%emt 0:02:55]} Red8 {[%emt 0:01:34]} 23. Nxc6 {[%emt 0:14:27]} Rxc6 {[%emt 0:00:04]} 24. Rxd5 $11 {[%emt 0:00:10]} (24. Bxd7 $18 Rxc5 25. Bf5) 24... Rxc5 {[%emt 0:01:56]} 25. Rcxc5 {[%emt 0:03:48]} Bxc5 {[%emt 0:00:18]} 26. Bxd7 {[%emt 0:00:16]} Qe4 {[%emt 0:01:29]} 27. Rxc5 {[%emt 0:01:34]} 1-0